Workbook

Sheet Лист1
A1: Школа | C1: МБОУ «Кузембетьевская СОШ им. Х. Г. Хусаинова» | F1: Согласовано | G1: должность | H1: директор МБОУ
A2: Типовое примерное меню приготавливаемых блюд | G2: фамилия | H2: Валуллин Ф. Х.
A3: Возрастная категория | E3: 7-11 лет | G3: дата | H3: 1 | I3: 3 | J3: 2026
H4: день | I4: месяц | J4: год
A5: Неделя | B5: День недели | C5: Прием пищи | D5: Раздел меню | E5: Блюда | F5: Вес блюда, г | G5: Белки | H5: Жиры | I5: Углеводы | J5: Калорийность | K5: № рецептуры | L5: Цена
A6: 1 | B6: 1 | C6: Завтрак | D6: Закуска | E6: Свекла отварная (порциями) | F6: 60 | G6: 0.9 | H6: 0.1 | I6: 5 | J6: 24.1 | K6: № Т/К 33 | L6: 8.29
D7: гор.блюдо | E7: Суп картофельный с вермишелью | F7: 200 | G7: 9.15 | H7: 9.75 | I7: 30.2 | J7: 204.4 | K7: № Т/к 100 | L7: 26.78
D8: гор.блюдо | E8: Треугольник П/Ф | F8: 70 | G8: 5.7 | H8: 5 | I8: 29.8 | J8: 221.7 | K8: Т/к №410 | L8: 35.17
D9: гор.напиток | E9: Чай с молоком и сахаром | F9: 200 | G9: 1.6 | H9: 1.1 | I9: 8.6 | J9: 50.9 | K9: 54-4гн-2020 | L9: 5.78
D10: хлеб | E10: Хлеб ржаной | F10: 20 | G10: 1.3 | H10: 0.2 | I10: 6.7 | J10: 34.2 | K10: пром | L10: 1.74
D13: итого | F13: =SUM(F6:F12) -> 550 | G13: =SUM(G6:G12) -> 18.65 | H13: 16.15 | I13: 80.3 | J13: 535.3 | L13: =SUM(L6:L12) -> 77.76
A14: =A6 -> 1 | B14: =B6 -> 1 | C14: Обед | D14: закуска
D15: 1 блюдо
D16: 2 блюдо
D17: гарнир
D18: напиток
D19: хлеб бел.
D20: хлеб черн.
D23: итого | F23: =SUM(F14:F22) -> 0 | G23: =SUM(G14:G22) -> 0 | H23: 0 | I23: 0 | J23: 0 | L23: =SUM(L14:L22) -> 0
A24: =A6 -> 1 | B24: =B6 -> 1 | C24: Итого за день: | F24: =F13+F23 -> 550 | G24: =G13+G23 -> 18.65 | H24: 16.15 | I24: 80.3 | J24: 535.3 | L24: =L13+L23 -> 77.76
A25: 1 | B25: 2 | C25: Завтрак | D25: закуска | E25: Салат из отварной моркови и растительным маслом | F25: 60 | G25: 0.5 | H25: 6.1 | I25: 4.3 | J25: 74.3 | K25: №Т/К 41 | L25: 5.94
D26: гор.блюдо | E26: Каша гречневая рассыпчатая | F26: 150 | G26: 3.2 | H26: 4.8 | I26: 25.9 | J26: 107.1 | K26: 54-4г-2020 | L26: 20.14
D27: гор.блюдо | E27: Котлета мясная с соусом | F27: 100 | G27: 11.28 | H27: 7.37 | I27: 12.4 | J27: 179.2 | K27: №Т/К 272 | L27: 27.61
D28: гор.напиток | E28: Компот из смеси сухофруктов | F28: 200 | G28: 0.47 | H28: 0 | I28: 14.78 | J28: 65 | K28: 54-1хн-2020 | L28: 10.35
D29: хлеб | E29: Хлеб ржаной | F29: 20 | G29: 1.3 | H29: 0.2 | I29: 6.7 | J29: 34.2 | K29: пром | L29: 1.74
D30: хлеб | E30: Хлеб пшеничный | F30: 20 | G30: 1.52 | H30: 0.16 | I30: 9.84 | J30: 46.9 | K30: пром | L30: 1.98
D31: гор.блюдо | E31: Яйцо вареное | F31: 40 | G31: 0.93 | H31: 1.05 | I31: 0.25 | J31: 56.6 | K31: 54-6о | L31: 10
D32: итого | F32: =SUM(F25:F31) -> 590 | G32: =SUM(G25:G31) -> 19.2 | H32: =SUM(H25:H31) -> 19.68 | I32: =SUM(I25:I31) -> 74.17 | J32: =SUM(J25:J31) -> 563.3 | L32: 77.76
A33: =A25 -> 1 | B33: =B25 -> 2 | C33: Обед | D33: закуска
D34: 1 блюдо
D35: 2 блюдо
D36: гарнир
D37: напиток
D38: хлеб бел.
D39: хлеб черн.
D42: итого | F42: =SUM(F33:F41) -> 0 | G42: =SUM(G33:G41) -> 0 | H42: =SUM(H33:H41) -> 0 | I42: =SUM(I33:I41) -> 0 | J42: =SUM(J33:J41) -> 0 | L42: 0
A43: =A25 -> 1 | B43: =B25 -> 2 | C43: Итого за день: | F43: =F32+F42 -> 590 | G43: =G32+G42 -> 19.2 | H43: =H32+H42 -> 19.68 | I43: =I32+I42 -> 74.17 | J43: =J32+J42 -> 563.3 | L43: 77.76
A44: 1 | B44: 3 | C44: Завтрак | D44: закуска | E44: Винегрет с растительным маслом | F44: 60 | G44: 0.7 | H44: 5.4 | I44: 4 | J44: 67.1 | K44: 54-16з-2020 | L44: 10.43
D45: гор.блюдо | E45: Макароны отварные | F45: 150 | G45: 5.3 | H45: 4.9 | I45: 32.8 | J45: 196.8 | K45: 54-1г-2020 | L45: 16.5
D46: гор.блюдо | E46: Птица тушеная | F46: 110 | G46: 8.65 | H46: 7.83 | I46: 3.9 | J46: 145 | K46: т/к№290 | L46: 29.72
D47: гор.напиток | E47: Чай с лимоном и сахаром | F47: 214 | G47: 0.2 | H47: 0.1 | I47: 6.6 | J47: 27.9 | K47: 54-3гн-2020 | L47: 4.69
D48: хлеб | E48: Хлеб ржаной | F48: 20 | G48: 1.3 | H48: 0.2 | I48: 6.7 | J48: 34.2 | K48: пром | L48: 1.74
D49: хлеб | E49: Хлеб пшеничный | F49: 20 | G49: 1.52 | H49: 0.16 | I49: 9.84 | J49: 46.9 | K49: пром | L49: 1.98
D50: фрукты | E50: Фрукт (апельсин, банан, яблоко) | F50: 150 | G50: 0.6 | H50: 0.6 | I50: 14.7 | J50: 66.6 | K50: пром | L50: 12.7
D51: итого | F51: =SUM(F44:F50) -> 724 | G51: =SUM(G44:G50) -> 18.27 | H51: =SUM(H44:H50) -> 19.19 | I51: =SUM(I44:I50) -> 78.54 | J51: =SUM(J44:J50) -> 584.5 | L51: 77.76
A52: =A44 -> 1 | B52: =B44 -> 3 | C52: Обед | D52: закуска
D53: 1 блюдо
D54: 2 блюдо
D55: гарнир
D56: напиток
D57: хлеб бел.
D58: хлеб черн.
D61: итого | F61: =SUM(F52:F60) -> 0 | G61: =SUM(G52:G60) -> 0 | H61: =SUM(H52:H60) -> 0 | I61: =SUM(I52:I60) -> 0 | J61: =SUM(J52:J60) -> 0 | L61: 0
A62: =A44 -> 1 | B62: =B44 -> 3 | C62: Итого за день: | F62: =F51+F61 -> 724 | G62: =G51+G61 -> 18.27 | H62: =H51+H61 -> 19.19 | I62: =I51+I61 -> 78.54 | J62: =J51+J61 -> 584.5 | L62: 77.76
A63: 1 | B63: 4 | C63: Завтрак | D63: закуска | E63: Морковь отварная (порциями) | F63: 60 | G63: 0.8 | H63: 0.1 | I63: 4.1 | J63: 21 | K63: № Т/К 15 | L63: 9.57
D64: гор.блюдо | E64: Картофельное пюре | F64: 150 | G64: 3.1 | H64: 5.3 | I64: 19.8 | J64: 139.4 | K64: 54-11г-2020 | L64: 25.22
D65: гор.блюдо | E65: "Ёжики" мясные 2 шт | F65: 100 | G65: 10.8 | H65: 10.3 | I65: 22.5 | J65: 240.1 | K65: т/к №296 | L65: 31.9
D66: гор.напиток | E66: Чай с сахаром и яблоком | F66: 217 | G66: 0.2 | H66: 0 | I66: 8.2 | J66: 34.1 | K66: Т/К№430 | L66: 7.35
D68: хлеб | E68: Хлеб ржаной | F68: 20 | G68: 1.3 | H68: 0.2 | I68: 6.7 | J68: 34.2 | K68: пром | L68: 1.74
D69: хлеб | E69: Хлеб пшеничный | F69: 20 | G69: 1.52 | H69: 0.16 | I69: 9.84 | J69: 46.9 | K69: пром | L69: 1.98
D70: итого | F70: =SUM(F63:F69) -> 567 | G70: =SUM(G63:G69) -> 17.72 | H70: =SUM(H63:H69) -> 16.06 | I70: =SUM(I63:I69) -> 71.14 | J70: =SUM(J63:J69) -> 515.7 | L70: 77.76
A71: =A63 -> 1 | B71: =B63 -> 4 | C71: Обед | D71: закуска
D72: 1 блюдо
D73: 2 блюдо
D74: гарнир
D75: напиток
D76: хлеб бел.
D77: хлеб черн.
D80: итого | F80: =SUM(F71:F79) -> 0 | G80: =SUM(G71:G79) -> 0 | H80: =SUM(H71:H79) -> 0 | I80: =SUM(I71:I79) -> 0 | J80: =SUM(J71:J79) -> 0 | L80: 0
A81: =A63 -> 1 | B81: =B63 -> 4 | C81: Итого за день: | F81: =F70+F80 -> 567 | G81: =G70+G80 -> 17.72 | H81: =H70+H80 -> 16.06 | I81: =I70+I80 -> 71.14 | J81: =J70+J80 -> 515.7 | L81: 77.76
A82: 1 | B82: 5 | C82: Завтрак | D82: закуска | E82: Салат картофельный с морковью, зеленым горошком и растительным маслом | F82: 60 | G82: 0.5 | H82: 5.7 | I82: 4.5 | J82: 66.9 | K82: № Т/К 40 | L82: 9.31
D83: гор.блюдо | E83: Плов с куринными грудками | F83: 200 | G83: 11.7 | H83: 8.98 | I83: 26.01 | J83: 233.2 | K83: 54-12м-2020 | L83: 45.61
D84: гор.напиток | E84: Компот из смеси сухофруктов | F84: 200 | G84: 0.47 | H84: 0 | I84: 14.78 | J84: 65 | K84: 54-1хн-2020 | L84: 10.35
D85: хлеб | E85: Хлеб ржаной | F85: 20 | G85: 1.3 | H85: 0.2 | I85: 6.7 | J85: 34.2 | K85: пром | L85: 1.74
D86: сладкое | E86: Булочка ванильная | F86: 60 | G86: 4.68 | H86: 4.03 | I86: 30.46 | J86: 177 | K86: 54-10В | L86: 10.75
D89: итого | F89: =SUM(F82:F88) -> 540 | G89: =SUM(G82:G88) -> 18.65 | H89: =SUM(H82:H88) -> 18.91 | I89: =SUM(I82:I88) -> 82.45 | J89: =SUM(J82:J88) -> 576.3 | L89: 77.76
A90: =A82 -> 1 | B90: =B82 -> 5 | C90: Обед | D90: закуска
D91: 1 блюдо
D92: 2 блюдо
D93: гарнир
D94: напиток
D95: хлеб бел.
D96: хлеб черн.
D99: итого | F99: =SUM(F90:F98) -> 0 | G99: =SUM(G90:G98) -> 0 | H99: =SUM(H90:H98) -> 0 | I99: =SUM(I90:I98) -> 0 | J99: =SUM(J90:J98) -> 0 | L99: 0
A100: =A82 -> 1 | B100: =B82 -> 5 | C100: Итого за день: | F100: =F89+F99 -> 540 | G100: =G89+G99 -> 18.65 | H100: =H89+H99 -> 18.91 | I100: =I89+I99 -> 82.45 | J100: =J89+J99 -> 576.3 | L100: 77.76
A101: 1 | B101: 6 | C101: Завтрак | D101: закуска | E101: Винегрет с растительным маслом | F101: 60 | G101: 0.7 | H101: 5.4 | I101: 4 | J101: 67.1 | K101: 54-16з-2020 | L101: 10.43
D102: гор.блюдо | E102: Макароны отварные с сыром | F102: 180 | G102: 9.49 | H102: 8.19 | I102: 34.39 | J102: 249.3 | K102: 54-3г | L102: 41.28
D103: гор.напиток | E103: Кофейный напиток с молоком | F103: 200 | G103: 3.9 | H103: 2.9 | I103: 11.2 | J103: 86 | K103: 54-21гн-2020 | L103: 15.41
D104: хлеб | E104: Хлеб ржаной | F104: 20 | G104: 1.3 | H104: 0.2 | I104: 6.7 | J104: 34.2 | K104: пром | L104: 1.74
D105: хлеб | E105: Хлеб пшеничный | F105: 20 | G105: 1.52 | H105: 0.16 | I105: 9.84 | J105: 46.9 | K105: пром | L105: 1.98
D106: сладкое | E106: Сушка простая | F106: 30 | G106: 0.8 | H106: 0.39 | I106: 3.5 | J106: 26.5 | K106: пром | L106: 6.92
D108: итого | F108: =SUM(F101:F107) -> 510 | G108: =SUM(G101:G107) -> 17.71 | H108: 17.24 | I108: 69.63 | J108: 510 | L108: =SUM(L101:L107) -> 77.76
A109: =A101 -> 1 | B109: =B101 -> 6 | C109: Обед | D109: закуска
D110: 1 блюдо
D111: 2 блюдо
D112: гарнир
D113: напиток
D114: хлеб бел.
D115: хлеб черн.
D118: итого | F118: =SUM(F109:F117) -> 0 | G118: =SUM(G109:G117) -> 0 | H118: 0 | I118: 0 | J118: 0 | L118: =SUM(L109:L117) -> 0
A119: =A101 -> 1 | B119: =B101 -> 6 | C119: Итого за день: | F119: =F108+F118 -> 510 | G119: =G108+G118 -> 17.71 | H119: 17.24 | I119: 69.63 | J119: 510 | L119: =L108+L118 -> 77.76
A120: 2 | B120: 1 | C120: Завтрак | D120: закуска | E120: Салат из отварной моркови с яблоками и растительным маслом | F120: 60 | G120: 0.6 | H120: 5.9 | I120: 4.6 | J120: 74.4 | K120: №Т/К41 | L120: 5.94
D121: гор.блюдо | E121: Борщ | F121: 200 | G121: 10.77 | H121: 6.46 | I121: 19.1 | J121: 166 | K121: 62 | L121: 27.56
D122: гор.напиток | E122: Чай с сахаром и яблоком | F122: 217 | G122: 0.2 | H122: 0 | I122: 8.2 | J122: 34.1 | K122: Т/К №430 | L122: 7.35
D123: гор.блюдо | E123: Выпечка (треугольник/курник) п/ф | F123: 70 | G123: 5.7 | H123: 5 | I123: 29.8 | J123: 221.7 | K123: пром | L123: 35.17
D124: хлеб | E124: Хлеб ржаной | F124: 20 | G124: 1.3 | H124: 0.2 | I124: 6.7 | J124: 34.2 | K124: пром | L124: 1.74
D127: итого | F127: =SUM(F120:F126) -> 567 | G127: =SUM(G120:G126) -> 18.57 | H127: 17.56 | I127: 68.4 | J127: 530.4 | L127: =SUM(L120:L126) -> 77.76
A128: =A120 -> 2 | B128: =B120 -> 1 | C128: Обед | D128: закуска
D129: 1 блюдо
D130: 2 блюдо
D131: гарнир
D132: напиток
D133: хлеб бел.
D134: хлеб черн.
D137: итого | F137: =SUM(F128:F136) -> 0 | G137: =SUM(G128:G136) -> 0 | H137: 0 | I137: 0 | J137: 0 | L137: =SUM(L128:L136) -> 0
A138: =A120 -> 2 | B138: =B120 -> 1 | C138: Итого за день: | F138: =F127+F137 -> 567 | G138: =G127+G137 -> 18.57 | H138: =H127+H137 -> 17.56 | I138: =I127+I137 -> 68.4 | J138: =J127+J137 -> 530.4 | L138: 77.76
A139: 2 | B139: 2 | C139: Завтрак | D139: закуска | E139: Винегрет и растительным маслом | F139: 60 | G139: 0.7 | H139: 5.4 | I139: 4 | J139: 67.1 | K139: 54-9з-2020 | L139: 10.43
D140: гор.блюдо | E140: Плов с куринными грудками | F140: 200 | G140: 11.7 | H140: 8.98 | I140: 26.01 | J140: 233.2 | K140: 54-12м-2020 | L140: 45.61
D141: гор.напиток | E141: Чай с лимоном и сахаром | F141: 214 | G141: 0.2 | H141: 0.1 | I141: 6.6 | J141: 27.9 | K141: 54-3гн-2020 | L141: 4.69
D142: хлеб | E142: Хлеб пшеничный | F142: 20 | G142: 1.52 | H142: 0.16 | I142: 9.84 | J142: 46.9 | K142: пром | L142: 1.98
D143: хлеб | E143: Хлеб ржаной | F143: 20 | G143: 1.3 | H143: 0.2 | I143: 6.7 | J143: 34.2 | K143: пром | L143: 1.74
D144: сладкое | E144: Кондитерское изделие (печенье, сушка, пряник) | F144: 36 | G144: 2.7 | H144: 3.53 | I144: 26.78 | J144: 149.7 | K144: пром | L144: 13.31
D146: итого | F146: =SUM(F139:F145) -> 550 | G146: =SUM(G139:G145) -> 18.12 | H146: 18.37 | I146: 79.93 | J146: 559 | L146: =SUM(L139:L145) -> 77.76
A147: =A139 -> 2 | B147: =B139 -> 2 | C147: Обед | D147: закуска
D148: 1 блюдо
D149: 2 блюдо
D150: гарнир
D151: напиток
D152: хлеб бел.
D153: хлеб черн.
D156: итого | F156: =SUM(F147:F155) -> 0 | G156: =SUM(G147:G155) -> 0 | H156: 0 | I156: 0 | J156: 0 | L156: =SUM(L147:L155) -> 0
A157: =A139 -> 2 | B157: =B139 -> 2 | C157: Итого за день: | F157: =F146+F156 -> 550 | G157: =G146+G156 -> 18.12 | H157: =H146+H156 -> 18.37 | I157: =I146+I156 -> 79.93 | J157: =J146+J156 -> 559 | L157: 77.76
A158: 2 | B158: 3 | C158: Завтрак | D158: закуска | E158: Салат из свеклы отварной с растительным маслом | F158: 60 | G158: 0.8 | H158: 2.7 | I158: 4.6 | J158: 45.6 | K158: 54-13з-2020 | L158: 9.78
D159: гор.блюдо | E159: Рагу из курицы | F159: 200 | G159: 10.95 | H159: 11.1 | I159: 20.52 | J159: 217.4 | K159: 54-22м-2020 | L159: 35.85
D161: гор.напиток | E161: Кофейный напиток с молоком | F161: 200 | G161: 3.9 | H161: 2.9 | I161: 11.2 | J161: 86 | K161: 54-21гн-2020 | L161: 15.41
D162: хлеб | E162: Хлеб ржаной | F162: 20 | G162: 1.3 | H162: 0.2 | I162: 6.7 | J162: 34.2 | K162: пром | L162: 1.74
D163: хлеб | E163: Хлеб пшеничный | F163: 20 | G163: 1.52 | H163: 0.16 | I163: 9.84 | J163: 46.9 | K163: пром | L163: 1.98
D164: фрукт | E164: Фрукт ( яблоко, банан, апельсин) | F164: 200 | G164: 0.6 | H164: 0.6 | I164: 14.7 | J164: 66.6 | K164: пром. | L164: 13
D165: итого | F165: =SUM(F158:F164) -> 700 | G165: =SUM(G158:G164) -> 19.07 | H165: 17.66 | I165: 67.56 | J165: 496.7 | L165: =SUM(L158:L164) -> 77.76
A166: =A158 -> 2 | B166: =B158 -> 3 | C166: Обед | D166: закуска
D167: 1 блюдо
D168: 2 блюдо
D169: гарнир
D170: напиток
D171: хлеб бел.
D172: хлеб черн.
D175: итого | F175: =SUM(F166:F174) -> 0 | G175: =SUM(G166:G174) -> 0 | H175: 0 | I175: 0 | J175: 0 | L175: =SUM(L166:L174) -> 0
A176: =A158 -> 2 | B176: =B158 -> 3 | C176: Итого за день: | F176: =F165+F175 -> 700 | G176: =G165+G175 -> 19.07 | H176: =H165+H175 -> 17.66 | I176: =I165+I175 -> 67.56 | J176: =J165+J175 -> 496.7 | L176: 77.76
A177: 2 | B177: 4 | C177: Завтрак | D177: закуска | E177: Салат картофельный с морковью, зеленым горошком и растительным маслом | F177: 60 | G177: 0.5 | H177: 5.7 | I177: 4.5 | J177: 66.9 | K177: № Т/К 40 | L177: 9.31
D178: гор.блюдо | E178: Каша гречневая рассыпчатая | F178: 150 | G178: 3.2 | H178: 4.8 | I178: 25.9 | J178: 107.1 | K178: 54-4г-2020 | L178: 20.14
D179: гор.блюдо | E179: Рыба припущенная в молоко | F179: 100 | G179: 8.06 | H179: 4.62 | I179: 3.89 | J179: 131.6 | K179: 54-7р-2020 | L179: 26.24
D180: гор.напиток | E180: Компот из смеси сухофруктов | F180: 200 | G180: 0.47 | H180: 0 | I180: 14.78 | J180: 65 | K180: 54-1хн-2020 | L180: 10.35
D181: хлеб | E181: Хлеб ржаной | F181: 20 | G181: 1.3 | H181: 0.2 | I181: 6.7 | J181: 34.2 | K181: пром | L181: 1.74
D182: сладкое | E182: Булочка /кекс (хлебзавод) | F182: 50 | G182: 3.85 | H182: 1.2 | I182: 24.7 | J182: 133 | K182: пром | L182: 9.98
D184: итого | F184: =SUM(F177:F183) -> 580 | G184: =SUM(G177:G183) -> 17.38 | H184: 16.52 | I184: 80.47 | J184: 537.8 | L184: =SUM(L177:L183) -> 77.76
A185: =A177 -> 2 | B185: =B177 -> 4 | C185: Обед | D185: закуска
D186: 1 блюдо
D187: 2 блюдо
D188: гарнир
D189: напиток
D190: хлеб бел.
D191: хлеб черн.
D194: итого | F194: =SUM(F185:F193) -> 0 | G194: =SUM(G185:G193) -> 0 | H194: 0 | I194: 0 | J194: 0 | L194: =SUM(L185:L193) -> 0
A195: =A177 -> 2 | B195: =B177 -> 4 | C195: Итого за день: | F195: =F184+F194 -> 580 | G195: =G184+G194 -> 17.38 | H195: =H184+H194 -> 16.52 | I195: =I184+I194 -> 80.47 | J195: =J184+J194 -> 537.8 | L195: 77.76
A196: 2 | B196: 5 | C196: Завтрак | D196: закуска | E196: Винегрет с растительным маслом | F196: 60 | G196: 0.7 | H196: 5.4 | I196: 4 | J196: 67.1 | K196: 54-16з-2020 | L196: 10.43
D197: гор.блюдо | E197: Макароны отварные | F197: 150 | G197: 5.3 | H197: 4.9 | I197: 32.8 | J197: 196.8 | K197: 54-1г-2020 | L197: 16.5
D198: гор.блюдо | E198: Гуляш из говядины | F198: 100 | G198: 6.99 | H198: 6.54 | I198: 8.3 | J198: 130.8 | K198: 54-2м-2020 | L198: 33.41
D199: гор.напиток | E199: Чай с сахаром | F199: 200 | G199: 0.19 | H199: 0.04 | I199: 6.42 | J199: 26.8 | K199: 54-2гн-2020 | L199: 3.7
D200: хлеб | E200: Хлеб пшеничный | F200: 20 | G200: 1.52 | H200: 0.16 | I200: 9.84 | J200: 46.9 | K200: пром | L200: 1.98
D201: хлеб | E201: Хлеб ржаной | F201: 20 | G201: 1.3 | H201: 0.2 | I201: 6.7 | J201: 34.2 | K201: пром | L201: 1.74
D202: гор.блюдо | E202: Сыр порциями | F202: 12 | G202: 1.78 | H202: 2.46 | I202: 0 | J202: 43 | K202: пром | L202: 10
D203: итого | F203: =SUM(F196:F202) -> 562 | G203: =SUM(G196:G202) -> 17.78 | H203: 19.7 | I203: 68.06 | J203: 545.6 | L203: =SUM(L196:L202) -> 77.76
A204: =A196 -> 2 | B204: =B196 -> 5 | C204: Обед | D204: закуска
D205: 1 блюдо
D206: 2 блюдо
D207: гарнир
D208: напиток
D209: хлеб бел.
D210: хлеб черн.
D213: итого | F213: =SUM(F204:F212) -> 0 | G213: =SUM(G204:G212) -> 0 | H213: 0 | I213: 0 | J213: 0 | L213: =SUM(L204:L212) -> 0
A214: =A196 -> 2 | B214: =B196 -> 5 | C214: Итого за день: | F214: =F203+F213 -> 562 | G214: =G203+G213 -> 17.78 | H214: 19.7 | I214: 68.06 | J214: 545.6 | L214: =L203+L213 -> 77.76
A215: 2 | B215: 6 | C215: Завтрак | D215: закуска | E215: Морковь отварная (порциями) | F215: 60 | G215: 0.8 | H215: 0.1 | I215: 4.1 | J215: 21 | K215: 54-9з-2020 | L215: 9.57
D216: гор.блюдо | E216: Запеканка из творога со сгущенным молоком | F216: 170 | G216: 11.82 | H216: 15 | I216: 40.35 | J216: 352.8 | K216: 54-1т-2020 | L216: 52.86
D217: гор.напиток | E217: Чай с лимоном и сахаром | F217: 214 | G217: 0.2 | H217: 0.1 | I217: 6.6 | J217: 27.9 | K217: 54-3гн-2020 | L217: 4.69
D218: хлеб | E218: Хлеб ржаной | F218: 20 | G218: 1.3 | H218: 0.2 | I218: 6.7 | J218: 34.2 | K218: пром | L218: 1.74
D219: хлеб | E219: Хлеб пшеничный | F219: 20 | G219: 1.52 | H219: 0.16 | I219: 9.84 | J219: 46.9 | K219: пром | L219: 1.98
D220: сладкое | E220: Сушка простая | F220: 30 | G220: 0.8 | H220: 0.39 | I220: 3.5 | J220: 26.5 | K220: пром | L220: 6.92
D222: итого | F222: =SUM(F215:F221) -> 514 | G222: =SUM(G215:G221) -> 16.44 | H222: 15.95 | I222: 71.09 | J222: 509.3 | L222: =SUM(L215:L221) -> 77.76
A223: =A215 -> 2 | B223: =B215 -> 6 | C223: Обед | D223: закуска
D224: 1 блюдо
D225: 2 блюдо
D226: гарнир
D227: напиток
D228: хлеб бел.
D229: хлеб черн.
D232: итого | F232: =SUM(F223:F231) -> 0 | G232: =SUM(G223:G231) -> 0 | H232: 0 | I232: 0 | J232: 0 | L232: =SUM(L223:L231) -> 0
A233: =A215 -> 2 | B233: =B215 -> 6 | C233: Итого за день: | F233: =F222+F232 -> 514 | G233: =G222+G232 -> 16.44 | H233: 15.95 | I233: 71.09 | J233: 509.3 | L233: =L222+L232 -> 77.76
C234: Среднее значение за период: | F234: =(F24+F43+F62+F81+F100+F119+F138+F157+F176+F195+F214+F233)/(IF(F24=0,0,1)+IF(F43=0,0,1)+IF(F62=0,0,1)+IF(F81=0,0,1)+IF(F100=0,0,1)+IF(F119=0,0,1)+IF(F138=0,0,1)+IF(F157=0,0,1)+IF(F176=0,0,1)+IF(F195=0,0,1)+IF(F214=0,0,1)+IF(F233=0,0,1)) -> 579.5 | G234: =(G24+G43+G62+G81+G100+G119+G138+G157+G176+G195+G214+G233)/(IF(G24=0,0,1)+IF(G43=0,0,1)+IF(G62=0,0,1)+IF(G81=0,0,1)+IF(G100=0,0,1)+IF(G119=0,0,1)+IF(G138=0,0,1)+IF(G157=0,0,1)+IF(G176=0,0,1)+IF(G195=0,0,1)+IF(G214=0,0,1)+IF(G233=0,0,1)) -> 18.13 | H234: 17.74916667 | I234: =(I24+I43+I62+I81+I100+I119+I138+I157+I176+I195+I214+I233)/(IF(I24=0,0,1)+IF(I43=0,0,1)+IF(I62=0,0,1)+IF(I81=0,0,1)+IF(I100=0,0,1)+IF(I119=0,0,1)+IF(I138=0,0,1)+IF(I157=0,0,1)+IF(I176=0,0,1)+IF(I195=0,0,1)+IF(I214=0,0,1)+IF(I233=0,0,1)) -> 74.31166667 | J234: 538.6583333 | L234: 77.76
